bitfinex/quotes_ETHUSD_20241009
["timestamp","ask_amount","ask_price","bid_price","bid_amount"]
[1728475146375,5.11957806,2441.8,2441.7,29.516562]
[1728475146566,5.11957806,2441.8,2441.7,28.90528984]
[1728475155209,5.11957806,2441.8,2441.7,12.39973384]
[1728475155539,5.11957806,2441.8,2441.7,62.49343584]
[1728475156538,5.11957806,2441.8,2441.7,61.50027872]
[1728475157037,5.11957806,2441.8,2441.7,61.88210765]
[1728475157339,5.11957806,2441.8,2441.7,62.49303394]
[1728475157647,5.11957806,2441.8,2441.7,62.87488446]
[1728475162706,5.11957806,2441.8,2441.7,61.88212924]
[1728475163833,5.11957806,2441.8,2441.7,64.87569382]
[1728475164241,5.11957806,2441.8,2441.7,64.4938433]
[1728475164605,5.11957806,2441.8,2441.7,64.87587425]
[1728475164805,5.11957806,2441.8,2441.7,64.87722804]
[1728475167039,4.94453061,2441.8,2441.7,61.88230967]
[1728475167241,4.94453061,2441.8,2441.7,65.830257]
[1728475168111,4.94453061,2441.8,2441.7,61.91047872]
[1728475168445,4.94453061,2441.8,2441.7,62.29244457]
[1728475168646,4.94453061,2441.8,2441.7,62.67437389]
[1728475169056,4.94453061,2441.8,2441.7,62.29240804]
[1728475169858,4.94453061,2441.8,2441.7,65.28684939]
[1728475170212,4.94453061,2441.8,2441.7,65.2869348]
[1728475172057,4.94453061,2441.8,2441.7,65.2869826]
[1728475172557,4.94453061,2441.8,2441.7,61.07475584]
[1728475173253,4.94453061,2441.8,2441.7,64.0692826]
[1728475173833,4.94453061,2441.8,2441.7,61.07475584]
[1728475175226,4.94453061,2441.8,2441.7,64.0692826]
[1728475175426,4.94453061,2441.8,2441.7,61.07475584]
[1728475175623,4.94453061,2441.8,2441.7,61.07485901]
[1728475178368,4.94453061,2441.8,2441.7,61.53202078]
[1728475178536,4.94453061,2441.8,2441.7,62.28962078]
[1728475179075,4.94453061,2441.8,2441.7,63.19625588]
[1728475179244,4.94453061,2441.8,2441.7,63.60635588]
[1728475180066,4.94453061,2441.8,2441.7,67.53474302]
[1728475180067,3.49125397,2441.8,2441.7,67.53474302]
[1728475180251,3.49125397,2441.8,2441.7,63.99717553]
[1728475180769,3.49125397,2441.8,2441.7,66.62813917]
[1728475181065,3.49125397,2441.8,2441.7,101.62813917]
[1728475181302,3.49125397,2441.8,2441.7,98.99717553]
[1728475181503,3.49125397,2441.8,2441.7,102.53517116]
[1728475181708,3.49125397,2441.8,2441.7,98.99717553]
[1728475182399,3.49125397,2441.8,2441.7,102.53566531]
[1728475182610,3.49125397,2441.8,2441.7,98.99717553]
[1728475182913,3.49125397,2441.8,2441.7,100.73801222]
[1728475183210,3.49125397,2441.8,2441.7,100.35593193]
[1728475183767,3.49125397,2441.8,2441.7,103.89463106]
[1728475183993,3.49125397,2441.8,2441.7,104.27671575]
[1728475184895,3.49125397,2441.8,2441.7,69.27671575]
[1728475185111,3.49125397,2441.8,2441.7,64.83138152]
[1728475185510,3.49125397,2441.8,2441.7,65.73801662]
[1728475186728,3.49125397,2441.8,2441.7,65.35593193]
[1728475188225,3.49125397,2441.8,2441.7,68.89513063]
[1728475188430,3.49125397,2441.8,2441.7,67.98849553]
[1728475188588,3.49125397,2441.8,2441.7,64.44929683]
[1728475188790,3.49125397,2441.8,2441.7,102.98841834]
[1728475188986,3.49125397,2441.8,2441.7,100.35593193]
[1728475189730,2.50608063,2441.8,2441.7,100.35593193]
[1728475190029,1.49973108,2441.8,2441.7,100.35593193]
[1728475190726,0.89363007,2441.8,2441.7,100.35593193]
[1728475191116,0.89363007,2441.8,2441.7,99.89877016]
[1728475192195,0.00264017,2442.0,2441.9,13.05527]
[1728475192533,0.00264017,2442.0,2441.9,73.03183219]
[1728475192744,0.00264017,2442.0,2441.9,73.93846729]
[1728475193800,0.00264017,2442.0,2441.9,70.40078333]
[1728475194001,0.00264017,2442.0,2441.9,69.49414823]
[1728475195221,0.00264017,2442.0,2441.9,69.6243427]
[1728475196637,0.00264017,2442.0,2441.9,104.6243427]
[1728475200336,0.00264017,2442.0,2441.9,108.16087713]
[1728475200652,0.00264017,2442.0,2441.9,104.6243427]
[1728475200951,0.00264017,2442.0,2441.9,108.16087713]
[1728475201154,0.00264017,2442.0,2441.9,73.16087713]
[1728475201651,0.00264017,2442.0,2441.9,69.6243427]
[1728475201818,0.00264017,2442.0,2441.9,73.16087713]
[1728475202248,0.00264017,2442.0,2441.9,69.6243427]
[1728475202554,0.00264017,2442.0,2441.9,73.16087713]
[1728475202709,0.7693,2442.5,2442.4,14.38516669]
[1728475202914,0.7693,2442.5,2442.4,66.33243554]
[1728475203111,0.7693,2442.5,2442.4,66.34202088]
[1728475203567,0.7693,2442.5,2442.4,66.34763116]
[1728475204360,0.7693,2442.5,2442.4,62.73753316]
[1728475204666,0.7693,2442.5,2442.4,46.97278916]
[1728475204956,0.7693,2442.5,2442.4,25.62205049]
[1728475208261,0.7693,2442.5,2442.4,26.07921226]
[1728475208460,7.48,2443.3,2443.1,3.0]
[1728475208661,0.7607,2443.2,2443.1,3.0]
[1728475209072,0.76634876,2443.2,2443.1,3.0]
[1728475211971,0.76634876,2443.2,2443.1,7.09316]
[1728475212329,0.76634876,2443.2,2443.1,0.00560418]
[1728475212527,0.76634876,2443.2,2443.1,0.01121446]
[1728475212857,0.76634876,2443.2,2443.1,0.0207998]
[1728475213343,1.25227364,2443.2,2443.1,0.0207998]
[1728475213547,1.27297364,2443.2,2443.1,0.0207998]
[1728475217675,0.00564876,2443.2,2443.1,38.96078749]
[1728475217847,0.04982089,2443.2,2443.1,16.9033258]
[1728475218179,0.76764876,2443.2,2443.1,7.1139598]
[1728475220779,0.80649892,2443.2,2443.1,0.0207998]
[1728475220945,0.80649892,2443.2,2443.1,3.22713072]
[1728475223177,0.80649892,2443.2,2443.1,7.32029072]
[1728475226547,0.80649892,2443.2,2443.1,14.06112741]
[1728475226848,0.80649892,2443.2,2443.1,15.87656915]
[1728475229182,0.80649892,2443.2,2443.1,12.32029072]
[1728475232778,0.80649892,2443.2,2443.1,7.32029072]
[1728475232985,0.80649892,2443.2,2443.1,3.22713072]
[1728475233278,0.80649892,2443.2,2443.1,0.22713072]
[1728475233671,0.80649892,2443.2,2443.1,0.0207998]
[1728475234648,5.4321704,2443.2,2443.1,0.0207998]
[1728475236069,7.17300709,2443.2,2443.1,0.0207998]
[1728475236995,1.3391804,2443.2,2443.1,0.0207998]
[1728475238267,5.4321704,2443.2,2443.1,0.0207998]
[1728475241346,7.17300709,2443.2,2443.1,0.0207998]
[1728475243502,5.4321704,2443.2,2443.1,0.0207998]
[1728475243675,7.17300709,2443.2,2443.1,0.0207998]
[1728475248016,5.4321704,2443.2,2443.1,0.0207998]
[1728475257347,5.85983762,2443.2,2443.1,0.0207998]
[1728475258977,5.4321704,2443.2,2443.1,0.0207998]
[1728475260885,7.17300709,2443.2,2443.1,0.0207998]
[1728475267076,5.4321704,2443.2,2443.1,0.0207998]
[1728475267294,4.13748892,2443.2,2443.1,0.0207998]
[1728475267866,0.04449892,2443.2,2443.1,0.0207998]
[1728475268192,4.13748892,2443.2,2443.1,0.0207998]
[1728475271955,4.91108892,2443.2,2443.1,0.0207998]
[1728475272190,5.98556648,2443.2,2443.1,0.0207998]
[1728475274489,4.56513498,2443.2,2443.1,0.0207998]
[1728475277491,0.47214498,2443.2,2443.1,0.0207998]
[1728475277894,0.04449892,2443.2,2443.1,0.0207998]
[1728475279622,4.13748892,2443.2,2443.1,0.0207998]
[1728475279911,4.90358892,2443.2,2443.1,0.0207998]
[1728475280113,5.97731648,2443.2,2443.1,0.0207998]
[1728475280536,7.71815317,2443.2,2443.1,0.0207998]
[1728475281013,6.95205317,2443.2,2443.1,0.0207998]
[1728475281221,7.71815317,2443.2,2443.1,0.0207998]
[1728475282509,9.74896309,2443.2,2443.1,0.0207998]
[1728475288601,9.71011293,2443.2,2443.1,0.0207998]
[1728475293975,10.13778022,2443.2,2443.1,0.0207998]
[1728475294139,9.06405266,2443.2,2443.1,0.0207998]
[1728475294303,4.52630605,2443.2,2443.1,0.0207998]
[1728475298055,4.09863876,2443.2,2443.1,0.0207998]
[1728475299052,0.00564876,2443.2,2443.1,0.8117998]
[1728475299345,4.09863876,2443.2,2443.1,0.8117998]
[1728475299906,0.00564876,2443.2,2443.1,0.8117998]
[1728475301549,0.00564876,2443.2,2443.1,8.28613978]
[1728475302743,0.00564876,2443.2,2443.1,4.19297978]
[1728475309558,0.00564876,2443.2,2443.1,0.8117998]
[1728475315036,4.09863876,2443.2,2443.1,0.8117998]
[1728475315436,0.00564876,2443.2,2443.1,0.8117998]
[1728475322166,0.00564876,2443.2,2443.1,4.9049598]
[1728475322365,0.00564876,2443.2,2443.1,9.64420143]
[1728475322570,0.00564876,2443.2,2443.1,20.66283069]
[1728475322771,0.00564876,2443.2,2443.1,16.14193006]
[1728475325397,0.00564876,2443.2,2443.1,15.07127406]
[1728475328750,0.00564876,2443.2,2443.1,12.00760806]
[1728475328953,0.00564876,2443.2,2443.1,10.0390598]
[1728475329580,0.00564876,2443.2,2443.1,7.9049598]
[1728475330258,0.00564876,2443.2,2443.1,10.0447288]
[1728475330600,0.00564876,2443.2,2443.1,3.8117998]
[1728475330750,0.00564876,2443.2,2443.1,3.0207998]
[1728475331080,0.00564876,2443.2,2443.1,0.0207998]
[1728475332569,4.82526876,2443.3,2443.1,0.0207998]
[1728475333505,4.09268,2443.4,2443.1,3.0207998]
[1728475333813,4.09268,2443.4,2443.1,0.0207998]
[1728475334512,4.09284,2443.3,2443.1,0.0207998]
[1728475335375,0.00564876,2443.2,2443.1,0.0207998]
[1728475335580,0.00564876,2443.2,2443.1,7.8682598]
[1728475335881,0.00564876,2443.2,2443.1,4.56192578]
[1728475336289,0.00564876,2443.2,2443.1,8.65508578]
[1728475338380,0.00564876,2443.2,2443.1,9.03687918]
[1728475338602,0.00564876,2443.2,2443.1,8.65508578]
[1728475338813,0.00564876,2443.2,2443.1,41.55037541]
[1728475338972,0.00564876,2443.2,2443.1,42.10037541]
[1728475340381,0.00564876,2443.2,2443.1,42.48203817]
[1728475342010,0.00564876,2443.2,2443.1,42.48200148]
[1728475343275,0.00564876,2443.2,2443.1,40.74275985]
[1728475343472,0.00564876,2443.2,2443.1,42.48200148]
[1728475344916,0.00564876,2443.2,2443.1,36.41461648]
[1728475345116,0.00564876,2443.2,2443.1,36.41456754]
[1728475346935,0.00564876,2443.2,2443.1,38.97778252]
[1728475348479,0.00564876,2443.2,2443.1,38.05956133]
[1728475348723,0.00564876,2443.2,2443.1,41.00394013]
[1728475348889,0.00564876,2443.2,2443.1,41.00396053]
[1728475349221,0.00564876,2443.2,2443.1,38.44074555]
[1728475351431,0.00564876,2443.2,2443.1,13.35208255]
[1728475351730,0.00564876,2443.2,2443.1,63.44578455]
[1728475352094,0.00564876,2443.2,2443.1,63.44555427]
[1728475353595,0.00564876,2443.2,2443.1,66.0061]
[1728475353852,0.00564876,2443.2,2443.1,63.44555427]
[1728475354519,0.00564876,2443.2,2443.1,66.0061]
[1728475355193,0.00564876,2443.2,2443.1,66.06750854]
[1728475355602,4.09093,2444.5,2443.1,66.06750854]
[1728475355603,0.7916,2445.1,2444.5,3.7674]
[1728475355801,4.88192,2444.8,2444.5,0.00958534]
[1728475356040,0.7916,2444.8,2444.5,0.0207998]
[1728475356556,0.7916,2444.8,2444.7,0.00958534]
[1728475357098,0.7916,2444.8,2444.7,0.01519562]
[1728475357617,0.7916,2444.8,2444.7,7.1112798]
[1728475357832,0.7885,2445.1,2444.7,7.1112798]
[1728475358150,0.487814,2445.0,2444.8,3.0]
[1728475358653,0.487814,2445.0,2444.9,0.0207998]
[1728475361959,0.49346276,2445.0,2444.9,0.0207998]
[1728475362653,4.58343276,2445.0,2444.9,0.0207998]
[1728475363530,4.58343276,2445.0,2444.9,0.01967723]
[1728475364308,5.35383276,2445.0,2444.9,0.01967723]
[1728475375261,0.00564876,2445.0,2444.9,0.01967723]
[1728475379727,4.09561876,2445.0,2444.9,0.01967723]
[1728475388756,0.00564876,2445.0,2444.9,0.84687723]
[1728475389264,0.00564876,2445.0,2444.9,7.93701723]
[1728475389599,0.00564876,2445.0,2444.9,9.4075079]
[1728475396517,0.00564876,2445.0,2444.9,63.81345643]
[1728475398376,0.00564876,2445.0,2444.9,61.78686701]
[1728475405896,0.00564876,2445.0,2444.9,47.67692901]
[1728475406099,0.00564876,2445.0,2444.9,29.40523601]
[1728475407345,0.00564876,2445.0,2444.9,0.01967723]
[1728475407518,4.09561876,2445.0,2444.9,0.01967723]
[1728475410810,4.88591876,2445.0,2444.9,0.01967723]
[1728475412330,8.64951676,2445.0,2444.9,0.01967723]
[1728475414638,9.19951676,2445.0,2444.9,0.01967723]
[1728475414805,4.09216,2443.7,2443.3,4.89479]
[1728475415006,4.79009,2443.8,2443.3,4.89479]
[1728475415202,4.79009,2443.8,2443.3,4.89478]
[1728475415703,0.698,2443.8,2443.4,4.09254]
[1728475415939,0.698,2443.8,2443.4,5.491272]
[1728475416306,0.698,2443.8,2443.5,3.0]
[1728475416706,4.88018,2444.1,2443.6,7.09221]
[1728475416946,0.7887,2444.1,2443.7,4.09212]
[1728475417248,4.86151,2444.4,2443.8,3.0]
[1728475417545,4.86148,2444.4,2444.0,3.0]
[1728475418044,0.7704,2444.4,2444.3,0.00560418]
[1728475419044,0.77604876,2444.4,2444.3,0.00560418]
[1728475419214,0.00564876,2444.4,2444.3,0.00560418]
[1728475419608,0.00564876,2444.4,2444.3,0.01121446]
[1728475420232,0.00564876,2444.4,2444.3,0.0207998]
[1728475426550,0.00564876,2444.4,2444.3,3.0207998]
[1728475427117,0.00564876,2444.4,2444.3,7.1119498]
[1728475427460,0.00564876,2444.4,2444.3,3.0207998]
[1728475428016,0.00564876,2444.4,2444.3,7.1119498]
[1728475430734,0.00564876,2444.4,2444.3,3.0207998]
[1728475432368,0.00564876,2444.4,2444.3,0.0207998]
[1728475432537,0.00564876,2444.4,2444.3,3.0207998]
[1728475432954,0.00564876,2444.4,2444.3,0.0207998]
[1728475435448,4.99190064,2444.4,2444.3,0.0207998]
[1728475438439,9.51539864,2444.4,2444.3,0.0207998]
[1728475444481,13.27899664,2444.4,2444.3,0.0207998]
[1728475444789,9.51539864,2444.4,2444.3,0.0207998]
[1728475449244,16.27899664,2444.4,2444.3,0.0207998]
[1728475450095,16.82899664,2444.4,2444.3,0.0207998]
[1728475450390,4.09316,2443.1,2442.8,0.7967]
[1728475450589,4.09335,2443.0,2442.8,0.7967]
[1728475451588,4.09335,2443.0,2442.6,1.22955208]
[1728475451589,0.00564876,2442.9,2442.6,1.22955208]
[1728475451846,4.09925876,2442.9,2442.6,0.7967]
[1728475452003,4.09925876,2442.9,2442.4,0.8054]
[1728475452004,0.00564876,2442.7,2442.4,0.8054]
[1728475452205,4.09401,2442.6,2442.4,0.8054]
[1728475452499,4.09438,2442.4,2441.9,9.52800208]
[1728475452700,4.09438,2442.4,2442.0,2.16771921]
[1728475453062,4.09980876,2442.5,2442.0,6.26270921]
[1728475453258,4.09980876,2442.5,2442.0,6.26262921]
[1728475453488,8.18842,2442.5,2442.0,6.47205875]
[1728475453792,4.09416,2442.5,2442.4,0.00958534]
[1728475454360,4.84432,2442.6,2442.4,0.00958534]
[1728475454618,4.09402,2442.6,2442.4,0.00958534]
[1728475455483,0.00564876,2442.5,2442.4,0.00958534]
[1728475456084,0.00564876,2442.5,2442.4,0.82018534]
[1728475456295,0.00564876,2442.5,2442.4,0.82579562]
[1728475457496,0.00564876,2442.5,2442.4,0.8313998]
[1728475457697,4.09980876,2442.5,2442.4,0.0207998]
[1728475462233,4.91918964,2442.5,2442.4,0.0207998]
[1728475468314,4.09980876,2442.5,2442.4,0.0207998]
[1728475478416,5.84052218,2442.5,2442.4,0.0207998]
[1728475478758,6.64632218,2442.5,2442.4,0.0207998]
[1728475479415,4.90560876,2442.5,2442.4,0.0207998]
[1728475479616,6.64632218,2442.5,2442.4,0.0207998]
[1728475479814,7.7203544,2442.5,2442.4,0.0207998]
[1728475480436,9.75307491,2442.5,2442.4,0.0207998]
[1728475482838,10.39482033,2442.5,2442.4,0.0207998]
[1728475484985,9.75307491,2442.5,2442.4,0.0207998]
[1728475487562,5.97964098,2442.5,2442.4,0.0207998]
[1728475487856,9.75307491,2442.5,2442.4,0.0207998]
[1728475490079,17.61607491,2442.5,2442.4,0.0207998]
[1728475491456,4.09601,2441.4,2441.3,0.7585]
[1728475491995,4.10165876,2441.4,2441.3,0.7585]
[1728475496366,0.82540164,2441.4,2440.0,0.64180046]
[1728475496569,3.77343393,2440.9,2440.4,0.7936]
[1728475496859,4.09703,2440.8,2440.5,0.7936]
[1728475497062,4.0972,2440.7,2440.5,0.7936]
[1728475497278,4.0972,2440.7,2440.1,0.7543]
[1728475497481,4.0972,2440.7,2440.1,5.05960866]
[1728475497482,4.09736,2440.6,2440.1,5.05960866]
[1728475497664,4.09736,2440.6,2440.1,5.97539753]
[1728475497862,4.09736,2440.6,2440.1,5.22109753]
[1728475498085,4.09736,2440.6,2440.2,0.7543]
[1728475498950,0.00564876,2440.5,2440.2,0.7543]
[1728475500199,0.00564876,2440.5,2440.2,4.85231]
[1728475500396,0.00564876,2440.5,2440.3,0.7939]
[1728475500725,4.0972,2440.7,2440.3,0.7939]
[1728475501034,4.09715,2440.8,2440.4,0.00958534]
[1728475501191,4.09742,2440.6,2440.4,0.00958534]
[1728475501690,4.09742,2440.6,2440.3,0.7939]
[1728475502087,4.09761,2440.5,2440.3,0.7939]
[1728475502287,4.09742,2440.6,2440.3,0.7939]
[1728475502495,4.96272839,2440.8,2440.7,0.00560418]
[1728475502703,4.09675,2441.0,2440.7,0.77510418]
[1728475502913,4.09609,2441.4,2440.7,0.77510418]
[1728475502914,0.8303,2441.4,2440.7,0.77510418]
[1728475503100,4.09683,2441.0,2440.7,0.78468952]
[1728475503625,8.19367,2441.0,2440.9,0.00560418]
[1728475503831,9.013037,2441.0,2440.9,0.01121446]
[1728475504639,9.013037,2441.0,2440.9,0.0207998]
[1728475504956,9.01868576,2441.0,2440.9,0.0207998]
[1728475506031,4.92184576,2441.0,2440.9,0.0207998]
[1728475506191,0.00564876,2441.0,2440.9,0.0207998]
[1728475506833,0.00564876,2441.0,2440.9,0.8158998]
[1728475508928,0.00564876,2441.0,2440.9,4.9127398]
[1728475511541,0.00564876,2441.0,2440.9,0.8158998]
[1728475513146,4.10232876,2441.0,2440.9,0.8158998]
[1728475513724,4.92219664,2441.0,2440.9,0.8158998]
[1728475513963,4.92219664,2441.0,2440.9,0.0207998]
[1728475514629,5.70219664,2441.0,2440.9,0.0207998]
[1728475518393,9.25219664,2441.0,2440.9,0.0207998]
[1728475520381,13.02563057,2441.0,2440.9,0.0207998]
[1728475520592,17.33863057,2441.0,2438.6,6.66089294]
[1728475520898,17.33863057,2441.0,2438.5,0.64214653]
[1728475520899,4.0997,2439.2,2438.5,4.10072]
[1728475521050,4.09945,2439.4,2438.7,4.10044]
[1728475521251,4.09981,2439.2,2438.5,8.20153]
[1728475521479,4.09981,2439.2,2438.6,4.10068]
[1728475521683,0.00564876,2439.0,2438.6,4.10068]
[1728475521876,0.00564876,2439.0,2438.6,4.18268694]
[1728475522077,0.00564876,2439.0,2438.7,4.10047]
[1728475522279,0.00564876,2439.0,2438.8,0.08199743]
[1728475522480,4.09846,2440.0,2439.4,4.09936]
[1728475522663,4.09807,2440.2,2439.2,4.09958]
[1728475522864,4.09807,2440.2,2439.3,5.08197933]
[1728475523063,4.0984,2440.0,2439.4,3.0]
[1728475523318,8.19689,2440.0,2439.4,3.0]
[1728475523471,4.09865,2439.9,2439.4,0.8319]
[1728475523859,4.0984,2440.0,2439.4,0.8319]
[1728475524064,0.00564876,2439.5,2439.4,0.8319]
[1728475526566,0.00564876,2439.5,2439.4,2.034987]
[1728475527497,0.00564876,2439.5,2439.4,0.8319]
[1728475528101,0.00564876,2439.5,2439.4,0.84709562]
[1728475528492,0.00564876,2439.5,2439.4,0.8526998]
[1728475530503,0.00564876,2439.5,2439.4,0.0207998]
[1728475530670,4.10484876,2439.5,2439.4,0.0207998]
[1728475530868,5.30258003,2439.5,2439.4,0.0207998]
[1728475531089,9.07601396,2439.5,2439.4,0.0207998]
[1728475531282,9.86281396,2439.5,2439.4,0.0207998]
[1728475541051,6.08938003,2439.5,2439.4,0.0207998]
[1728475541253,4.10484876,2439.5,2439.4,0.0207998]
[1728475542098,0.00564876,2439.5,2439.4,0.0207998]
[1728475542404,4.10484876,2439.5,2439.4,0.0207998]
[1728475543114,0.00564876,2439.5,2439.4,0.0207998]
[1728475545306,4.10484876,2439.5,2439.4,0.0207998]
[1728475545506,4.92523764,2439.5,2439.4,0.0207998]
[1728475545865,0.00564876,2439.5,2439.4,0.0207998]
[1728475546524,4.10484876,2439.5,2439.4,0.0207998]
[1728475546725,0.00564876,2439.5,2439.4,0.0207998]
[1728475548360,0.00564876,2439.5,2439.4,0.7762998]
[1728475557742,0.00564876,2439.5,2439.4,7.8756598]
[1728475557955,0.00564876,2439.5,2439.4,25.59239467]
[1728475558121,0.00564876,2439.5,2439.4,20.19365667]
[1728475558303,0.00564876,2439.5,2439.4,19.18355667]
[1728475558498,0.00564876,2439.5,2439.4,9.95871867]
[1728475558731,0.00564876,2439.5,2439.4,7.8756598]
[1728475561114,0.00564876,2439.5,2439.4,15.3822988]
[1728475561509,0.00564876,2439.5,2439.4,7.8756598]
[1728475566924,0.00564876,2439.5,2439.4,7.95763579]
[1728475567151,0.00564876,2439.5,2439.4,25.84308979]
[1728475567349,0.00564876,2439.5,2439.4,11.54433214]
[1728475568019,0.00564876,2439.5,2439.4,3.7762998]
[1728475568219,0.00564876,2439.5,2439.4,3.0207998]
[1728475568634,0.00564876,2439.5,2439.4,7.1201598]
[1728475569924,0.00564876,2439.5,2439.4,0.0207998]
[1728475571419,4.10484876,2439.5,2439.4,0.0207998]
[1728475571620,4.92523864,2439.5,2439.4,0.0207998]
[1728475572660,0.82603864,2439.5,2439.4,0.0207998]
[1728475572862,0.00564876,2439.5,2439.4,0.0207998]
[1728475573063,5.84897235,2439.5,2439.4,0.0207998]
[1728475573982,4.92024876,2439.5,2439.4,0.0207998]
[1728475574155,0.00564876,2439.5,2439.4,0.0207998]
[1728475575959,4.91684876,2439.5,2439.4,0.0207998]
[1728475576143,5.81843864,2439.5,2439.4,0.0207998]
[1728475577802,9.59829818,2439.5,2439.4,0.0207998]
[1728475579297,5.81843864,2439.5,2439.4,0.0207998]
[1728475579502,9.59829818,2439.5,2439.4,0.0207998]
[1728475582729,5.81843864,2439.5,2439.4,0.0207998]
[1728475584609,9.59829818,2439.5,2439.4,0.0207998]
[1728475586958,12.59829818,2439.5,2439.4,0.0207998]
[1728475587284,13.14829818,2439.5,2439.4,0.0207998]
[1728475587448,9.36843864,2439.5,2439.4,0.0207998]
[1728475588149,8.81843864,2439.5,2439.4,0.0207998]
[1728475588310,5.81843864,2439.5,2439.4,0.0207998]
[1728475588715,5.00643864,2439.5,2439.4,0.0207998]
[1728475588915,4.10484876,2439.5,2439.4,0.0207998]
[1728475594231,7.8847083,2439.5,2439.4,0.0207998]
[1728475594463,8.6440083,2439.5,2439.4,0.0207998]
[1728475598598,11.6440083,2439.5,2439.4,0.0207998]
[1728475599582,7.86414876,2439.5,2439.4,0.0207998]
[1728475599763,9.43845459,2439.5,2439.4,0.0207998]
[1728475603795,9.98845459,2439.5,2439.4,0.0207998]
[1728475607303,9.43845459,2439.5,2439.4,0.0207998]
[1728475607916,6.43845459,2439.5,2439.4,0.0207998]
[1728475608336,4.10484876,2439.5,2439.4,0.0207998]
[1728475608709,4.10484876,2439.5,2439.4,0.7799998]
[1728475610461,0.00564876,2439.5,2439.4,4.8793598]
[1728475610763,0.00564876,2439.5,2439.4,0.7799998]
[1728475610936,0.00564876,2439.5,2439.4,1.64592373]
[1728475611107,0.00564876,2439.5,2439.4,5.74528373]
[1728475611309,0.00564876,2439.5,2439.4,42.64161298]
[1728475611556,0.00564876,2439.5,2439.4,45.33159427]
[1728475611760,0.00564876,2439.5,2439.4,46.54793427]
[1728475611940,0.00564876,2439.5,2439.4,46.08773427]
[1728475612510,4.09782,2440.4,2440.0,4.09835]
[1728475612712,4.09754,2440.5,2440.1,1.230335]
[1728475612942,4.09769,2440.4,2440.3,0.00560418]
[1728475613152,4.09756,2440.5,2440.3,0.01121446]
[1728475613447,4.09756,2440.5,2440.3,0.0207998]
[1728475613687,4.09768,2440.4,2440.3,0.0207998]
[1728475615457,4.09752,2440.5,2440.3,0.0207998]
[1728475615627,4.09768,2440.4,2440.3,0.0207998]
[1728475615955,4.09744,2440.6,2440.4,0.7946]
[1728475616619,4.09744,2440.6,2440.4,1.28593998]
[1728475617261,4.09744,2440.6,2440.4,0.7946]
[1728475617653,4.09713,2440.8,2440.4,0.7946]
[1728475617857,4.09713,2440.8,2440.7,0.79311028]
[1728475618104,4.0967,2441.0,2440.7,0.8082998]
[1728475618305,4.09646,2441.2,2440.7,0.8082998]
[1728475618306,4.0966,2441.1,2440.7,0.8082998]
[1728475618600,4.09668,2441.0,2440.9,0.76891446]
[1728475619160,4.09668,2441.0,2440.9,0.7784998]
[1728475619667,4.09668,2441.0,2440.9,0.77288952]
[1728475619870,4.09668,2441.0,2440.9,0.76728534]
[1728475620069,4.10232876,2441.0,2440.9,0.76728534]
[1728475621098,0.00564876,2441.0,2440.9,0.76728534]
[1728475621522,4.10232876,2441.0,2440.9,0.76728534]
[1728475623903,0.00564876,2441.0,2440.9,0.76728534]
[1728475624317,0.00564876,2441.0,2440.9,4.86412534]
[1728475624621,0.00564876,2441.0,2440.9,26.99202848]
[1728475624828,0.00564876,2441.0,2440.9,31.91010368]
[1728475625353,0.00564876,2441.0,2440.9,32.46010368]
[1728475625662,8.18996,2442.1,2441.5,4.09569]
[1728475625814,4.09496,2442.1,2441.5,4.09569]
[1728475626155,4.84961,2442.4,2441.6,1.204369]
[1728475626156,4.09535,2441.8,2441.6,1.204369]
[1728475626360,4.09527,2441.9,2441.6,1.204369]
[1728475626522,4.09538,2441.8,2441.6,0.7948]
[1728475628054,4.09538,2441.8,2441.7,0.00560418]
[1728475628350,4.09538,2441.8,2441.7,0.0207998]
[1728475630127,8.67003954,2441.8,2441.7,0.0207998]
[1728475631115,11.67003954,2441.8,2441.7,0.0207998]
[1728475631311,13.62455645,2441.8,2441.7,0.0207998]
[1728475632127,13.63020521,2441.8,2441.7,0.0207998]
[1728475632915,14.18020521,2441.8,2441.7,0.0207998]
[1728475634406,14.15960521,2441.8,2441.7,0.0207998]
[1728475635920,14.70236831,2441.8,2441.7,0.0207998]
[1728475636212,14.70236831,2441.8,2440.3,0.787]
[1728475636213,4.09768,2440.4,2440.3,0.787]
[1728475636598,4.10332876,2440.4,2440.3,0.787]
[1728475637988,8.19625,2440.2,2439.9,0.7969]
[1728475638180,4.09829,2440.1,2439.9,0.7969]
[1728475638400,0.00564876,2440.0,2439.9,0.7969]
[1728475642794,0.00564876,2440.0,2439.9,4.89542]
[1728475642990,0.00564876,2440.0,2439.9,5.39315859]
[1728475643231,0.00564876,2440.0,2439.9,5.4807249]
[1728475643535,0.00564876,2440.0,2439.9,8.49031024]
[1728475643689,0.00564876,2440.0,2439.9,8.41395839]
[1728475645237,0.00564876,2440.0,2439.9,4.31543839]
[1728475645406,0.00564876,2440.0,2439.9,8.49592064]
[1728475645758,0.00564876,2440.0,2439.9,21.82455793]
[1728475646611,0.00564876,2440.0,2439.9,18.04469839]
[1728475648524,0.00564876,2440.0,2439.9,15.98011939]
[1728475648737,0.00564876,2440.0,2439.9,15.29021939]
[1728475649046,0.00564876,2440.0,2439.9,21.24686839]
[1728475649210,0.00564876,2440.0,2439.9,25.02672793]
[1728475649836,0.00564876,2440.0,2439.9,25.57672793]
[1728475656749,0.00564876,2440.0,2439.9,12.64756539]
[1728475656943,0.00564876,2440.0,2439.9,10.3085718]
[1728475657129,0.00564876,2440.0,2439.9,7.7595718]
[1728475657773,0.00564876,2440.0,2439.9,3.6610518]
[1728475657987,0.00564876,2440.0,2439.9,0.0207998]
[1728475658634,4.10400876,2440.0,2439.9,0.0207998]
[1728475658836,0.00564876,2440.0,2439.9,0.0207998]
[1728475659443,5.00183764,2440.0,2439.9,0.0207998]
[1728475659690,0.90347764,2440.0,2439.9,0.0207998]
[1728475659981,0.00564876,2440.0,2439.9,0.0207998]
[1728475660189,4.10400876,2440.0,2439.9,0.0207998]
[1728475660790,8.6643683,2440.0,2439.9,0.0207998]
[1728475665783,4.88450876,2440.0,2439.9,0.0207998]
[1728475666388,0.00564876,2440.0,2439.9,0.0207998]
[1728475666588,4.10400876,2440.0,2439.9,0.0207998]
[1728475666797,0.00564876,2440.0,2439.9,0.0207998]
[1728475669869,0.00564876,2440.0,2439.9,0.10276187]
[1728475670135,0.00564876,2440.0,2439.9,4.1193198]
[1728475670296,0.00564876,2440.0,2439.9,8.09865883]
[1728475670528,0.00564876,2440.0,2439.9,48.90456183]
[1728475670655,0.00564876,2440.0,2439.9,14.46660078]
[1728475671202,0.00564876,2440.0,2439.9,15.01660078]
[1728475672061,4.09662,2441.1,2439.9,15.01660078]
[1728475672062,4.09668,2441.0,2440.5,4.09751]
[1728475672267,4.09668,2441.0,2440.4,3.7559]
[1728475672268,4.09693,2440.9,2440.4,7.85356]
[1728475672465,4.09693,2440.9,2440.4,9.92667495]